[Event "British Rapidplay Championship 2023"]
[Site "Mercure Bradford, Bankfield Hotel"]
[Date "2023.04.15"]
[Round "6.1"]
[White "Ghasi, Ameet K"]
[Black "Gormally, Daniel W"]
[Result "1/2-1/2"]
[TimeControl "15 minutes plus 10 seconds per move"]
[WhiteElo "2631"]
[BlackElo "2570"]

1. Nf3 {[%clk 00:14:24]} {[%emt 00:00:55]} Nf6 {[%clk 00:15:19]} 2. g3 {[%clk
00:14:33]} {[%emt 00:00:01]} g6 {[%clk 00:15:29]} 3. Bg2 {[%clk 00:14:19]}
{[%emt 00:00:24]} Bg7 {[%clk 00:15:38]} {[%emt 00:00:01]} 4. O-O {[%clk
00:14:27]} {[%emt 00:00:02]} O-O {[%clk 00:15:46]} {[%emt 00:00:02]} 5. d3
{[%clk 00:14:33]} {[%emt 00:00:03]} d6 {[%clk 00:15:55]} 6. e4 {[%clk
00:14:41]} {[%emt 00:00:02]} e5 {[%clk 00:16:04]} 7. Nbd2 {[%clk 00:14:44]}
{[%emt 00:00:07]} Nbd7 {[%clk 00:16:06]} {[%emt 00:00:08]} 8. a4 {[%clk
00:14:45]} {[%emt 00:00:10]} a5 {[%clk 00:16:12]} {[%emt 00:00:04]} 9. Nc4
{[%clk 00:14:50]} {[%emt 00:00:05]} b6 {[%clk 00:16:21]} 10. Re1 {[%clk
00:14:33]} {[%emt 00:00:26]} Nc5 {[%clk 00:16:20]} {[%emt 00:00:11]} 11. b3
{[%clk 00:12:31]} {[%emt 00:02:12]} Ba6 {[%clk 00:16:16]} {[%emt 00:00:14]} 12.
Ne3 {[%clk 00:12:16]} {[%emt 00:00:25]} c6 {[%clk 00:15:58]} {[%emt 00:00:29]}
13. Bb2 {[%clk 00:12:12]} {[%emt 00:00:14]} Qc7 {[%clk 00:15:56]} {[%emt
00:00:11]} 14. Qd2 {[%clk 00:11:04]} {[%emt 00:01:18]} Rfe8 {[%clk 00:15:56]}
{[%emt 00:00:10]} 15. Rad1 {[%clk 00:11:08]} {[%emt 00:00:07]} Rad8 {[%clk
00:15:42]} {[%emt 00:00:24]} 16. Qc1 {[%clk 00:11:13]} {[%emt 00:00:04]} Ne6
{[%clk 00:15:26]} {[%emt 00:00:27]} 17. Qa1 {[%clk 00:10:33]} {[%emt 00:00:49]}
c5 {[%clk 00:15:34]} {[%emt 00:00:02]} 18. Nxe5 {[%clk 00:08:27]} {[%emt
00:02:16]} dxe5 {[%clk 00:12:35]} {[%emt 00:03:10]} 19. Bxe5 {[%clk 00:08:35]}
{[%emt 00:00:01]} Qxe5 {[%clk 00:12:09]} {[%emt 00:00:36]} 20. Qxe5 {[%clk
00:08:18]} {[%emt 00:00:27]} Nh5 {[%clk 00:12:03]} {[%emt 00:00:16]} 21. Qd5
{[%clk 00:06:47]} {[%emt 00:01:42]} Rxd5 {[%clk 00:12:09]} {[%emt 00:00:04]} 22.
Nxd5 {[%clk 00:05:05]} {[%emt 00:01:52]} Rb8 {[%clk 00:12:18]} 23. e5 {[%clk
00:04:31]} {[%emt 00:00:45]} Kf8 {[%clk 00:12:16]} {[%emt 00:00:12]} 24. f4
{[%clk 00:04:17]} {[%emt 00:00:23]} Bh6 {[%clk 00:10:08]} {[%emt 00:02:19]} 25.
c3 {[%clk 00:03:43]} {[%emt 00:00:44]} Kg7 {[%clk 00:09:36]} {[%emt 00:00:41]}
26. Ne7 {[%clk 00:02:53]} {[%emt 00:01:01]} Re8 {[%clk 00:09:07]} {[%emt
00:00:39]} 27. Nc6 {[%clk 00:03:01]} {[%emt 00:00:02]} Nexf4 {[%clk 00:08:39]}
{[%emt 00:00:37]} 28. gxf4 {[%clk 00:03:09]} {[%emt 00:00:02]} Nxf4 {[%clk
00:08:49]} {[%emt 00:00:01]} 29. Be4 {[%clk 00:03:00]} {[%emt 00:00:19]} Rc8
{[%clk 00:08:07]} {[%emt 00:00:50]} 30. Na7 {[%clk 00:02:43]} {[%emt 00:00:27]}
Re8 {[%clk 00:08:10]} {[%emt 00:00:07]} 31. Nc6 {[%clk 00:02:40]} {[%emt
00:00:14]} Rc8 {[%clk 00:08:14]} {[%emt 00:00:05]} 32. Kf2 {[%clk 00:02:06]}
{[%emt 00:00:44]} Bxd3 {[%clk 00:07:17]} {[%emt 00:01:07]} 33. Bxd3 {[%clk
00:02:07]} {[%emt 00:00:09]} Rxc6 {[%clk 00:07:26]} {[%emt 00:00:02]} 34. Bb5
{[%clk 00:01:58]} {[%emt 00:00:18]} Re6 {[%clk 00:06:23]} {[%emt 00:01:13]} 35.
Rd7 {[%clk 00:01:52]} {[%emt 00:00:16]} Kf8 {[%clk 00:05:45]} {[%emt 00:00:49]}
36. Bc4 {[%clk 00:01:53]} {[%emt 00:00:09]} Re7 {[%clk 00:05:53]} {[%emt
00:00:01]} 37. Rd6 {[%clk 00:01:36]} {[%emt 00:00:27]} Kg7 {[%clk 00:05:03]}
{[%emt 00:01:01]} 38. Kf3 {[%clk 00:01:38]} {[%emt 00:00:08]} Nh3 {[%clk
00:04:48]} {[%emt 00:00:23]} 39. Kg3 {[%clk 00:01:31]} {[%emt 00:00:17]} Nf4
{[%clk 00:04:37]} {[%emt 00:00:22]} 40. Rxb6 {[%clk 00:01:32]} {[%emt
00:00:10]} Nh5+ {[%clk 00:04:46]} {[%emt 00:00:01]} 41. Kf3 {[%clk 00:01:39]}
{[%emt 00:00:02]} Bd2 {[%clk 00:04:55]} {[%emt 00:00:01]} 42. Rd1 {[%clk
00:00:56]} {[%emt 00:00:54]} Bxc3 {[%clk 00:05:02]} {[%emt 00:00:03]} 43. e6
{[%clk 00:01:04]} {[%emt 00:00:02]} fxe6 {[%clk 00:04:59]} {[%emt 00:00:13]} 44.
Rxe6 {[%clk 00:00:43]} {[%emt 00:00:31]} Rf7+ {[%clk 00:04:39]} {[%emt
00:00:29]} 45. Ke4 {[%clk 00:00:52]} {[%emt 00:00:01]} Nf6+ {[%clk 00:04:02]}
{[%emt 00:00:47]} 46. Kd3 {[%clk 00:00:58]} {[%emt 00:00:03]} Bb4 {[%clk
00:03:40]} {[%emt 00:00:33]} 47. Kc2 {[%clk 00:00:57]} {[%emt 00:00:12]} Ng4
{[%clk 00:03:26]} {[%emt 00:00:24]} 48. Re2 {[%clk 00:01:05]} {[%emt 00:00:01]}
Rf4 {[%clk 00:02:34]} {[%emt 00:01:01]} 49. Rd7+ {[%clk 00:00:58]} {[%emt
00:00:18]} Kh6 {[%clk 00:02:43]} {[%emt 00:00:01]} 50. Be6 {[%clk 00:00:48]}
{[%emt 00:00:20]} Nf6 {[%clk 00:02:34]} {[%emt 00:00:19]} 51. Rf7 {[%clk
00:00:53]} {[%emt 00:00:05]} Kg5 {[%clk 00:01:41]} {[%emt 00:01:03]} 52. Rg2+
{[%clk 00:00:37]} {[%emt 00:00:26]} Kh4 {[%clk 00:01:35]} {[%emt 00:00:17]} 53.
Bc4 {[%clk 00:00:30]} {[%emt 00:00:16]} g5 {[%clk 00:01:19]} {[%emt 00:00:26]}
54. Re2 {[%clk 00:00:25]} {[%emt 00:00:15]} h5 {[%clk 00:01:19]} {[%emt
00:00:10]} 55. Re6 {[%clk 00:00:22]} {[%emt 00:00:13]} Ng4 {[%clk 00:01:20]}
{[%emt 00:00:09]} 56. Re2 {[%clk 00:00:17]} {[%emt 00:00:15]} Nf6 {[%clk
00:00:36]} {[%emt 00:00:54]} 57. Re6 {[%clk 00:00:26]} {[%emt 00:00:01]} Ng4
{[%clk 00:00:45]} {[%emt 00:00:01]} 58. Re2 {[%clk 00:00:18]} {[%emt 00:00:19]}
Nf6 {[%clk 00:00:53]} {[%emt 00:00:02]} 59. Re6 {[%emt 00:00:25]} Ng4 {[%emt
00:00:02]} 60. Re2 Kh3 {[%emt 00:00:06]} 1/2-1/2

[Event "British Rapidplay Championship 2023"]
[Site "Mercure Bradford, Bankfield Hotel"]
[Date "2023.04.15"]
[Round "6.2"]
[White "Ashton, Adam G"]
[Black "Makkar, Rajat"]
[Result "0-1"]
[TimeControl "15 minutes plus 10 seconds per move"]
[WhiteElo "2390"]
[BlackElo "2297"]

1. e4 {[%clk 00:15:16]} {[%emt 00:00:04]} e5 {[%clk 00:15:15]} {[%emt
00:00:06]} 2. Nf3 {[%clk 00:15:24]} {[%emt 00:00:02]} Nc6 {[%clk 00:15:23]}
{[%emt 00:00:02]} 3. Bc4 {[%clk 00:15:11]} {[%emt 00:00:23]} Bc5 {[%clk
00:15:32]} {[%emt 00:00:01]} 4. d3 {[%clk 00:15:12]} {[%emt 00:00:10]} Nf6
{[%clk 00:15:28]} {[%emt 00:00:13]} 5. c3 {[%clk 00:15:15]} {[%emt 00:00:06]}
d6 {[%clk 00:15:35]} {[%emt 00:00:03]} 6. Bb3 {[%clk 00:15:11]} {[%emt
00:00:15]} a5 {[%clk 00:15:41]} {[%emt 00:00:04]} 7. Nbd2 {[%clk 00:15:01]}
{[%emt 00:00:20]} Be6 {[%clk 00:15:41]} {[%emt 00:00:10]} 8. O-O {[%clk
00:14:17]} {[%emt 00:00:53]} O-O {[%clk 00:15:34]} {[%emt 00:00:17]} 9. Nc4
{[%clk 00:13:17]} {[%emt 00:01:11]} b5 {[%clk 00:14:33]} {[%emt 00:01:11]} 10.
Ne3 {[%clk 00:13:18]} {[%emt 00:00:09]} a4 {[%clk 00:14:22]} {[%emt 00:00:21]}
11. Bc2 {[%clk 00:13:18]} {[%emt 00:00:10]} Ba7 {[%clk 00:13:54]} {[%emt
00:00:38]} 12. d4 {[%clk 00:12:15]} {[%emt 00:01:13]} exd4 {[%clk 00:12:50]}
{[%emt 00:01:14]} 13. Nxd4 {[%clk 00:09:56]} {[%emt 00:02:29]} Nxd4 {[%clk
00:11:42]} {[%emt 00:01:18]} 14. cxd4 {[%clk 00:10:05]} {[%emt 00:00:01]} d5
{[%clk 00:11:07]} {[%emt 00:00:45]} 15. e5 {[%clk 00:08:21]} {[%emt 00:01:54]}
Ne4 {[%clk 00:10:56]} {[%emt 00:00:21]} 16. f3 {[%clk 00:06:56]} {[%emt
00:01:35]} c5 {[%clk 00:10:59]} {[%emt 00:00:08]} 17. fxe4 {[%clk 00:05:16]}
{[%emt 00:01:50]} cxd4 {[%clk 00:11:02]} {[%emt 00:00:06]} 18. Qf3 {[%clk
00:03:45]} {[%emt 00:01:41]} dxe3 {[%clk 00:10:48]} {[%emt 00:00:25]} 19. Bxe3
{[%clk 00:03:53]} {[%emt 00:00:01]} d4 {[%clk 00:10:44]} {[%emt 00:00:14]} 20.
Bf2 {[%clk 00:04:01]} {[%emt 00:00:02]} Qg5 {[%clk 00:10:39]} {[%emt 00:00:15]}
21. Bd3 {[%clk 00:03:57]} {[%emt 00:00:14]} b4 {[%clk 00:10:19]} {[%emt
00:00:30]} 22. Bg3 {[%clk 00:03:41]} {[%emt 00:00:25]} Qe3+ {[%clk 00:10:08]}
{[%emt 00:00:22]} 23. Kh1 {[%clk 00:03:24]} {[%emt 00:00:27]} Rfc8 {[%clk
00:09:32]} {[%emt 00:00:45]} 24. Bf4 {[%clk 00:03:23]} {[%emt 00:00:12]} Qxf3
{[%clk 00:09:40]} {[%emt 00:00:02]} 25. gxf3 {[%clk 00:03:29]} {[%emt
00:00:04]} Bc4 {[%clk 00:09:46]} {[%emt 00:00:05]} 26. Bxc4 {[%clk 00:01:58]}
{[%emt 00:01:41]} Rxc4 {[%clk 00:09:55]} {[%emt 00:00:01]} 27. b3 {[%clk
00:02:04]} {[%emt 00:00:04]} Rc2 {[%clk 00:09:41]} {[%emt 00:00:24]} 28. bxa4
{[%clk 00:01:29]} {[%emt 00:00:45]} Bb6 {[%clk 00:09:25]} {[%emt 00:00:25]} 29.
Rfc1 {[%clk 00:00:28]} {[%emt 00:01:12]} d3 {[%clk 00:09:13]} {[%emt 00:00:22]}
30. Rxc2 {[%clk 00:00:36]} {[%emt 00:00:01]} dxc2 {[%clk 00:09:22]} 31. Rc1
{[%clk 00:00:46]} {[%emt 00:00:01]} Rc8 {[%clk 00:09:31]} {[%emt 00:00:01]} 32.
Kg2 {[%clk 00:00:49]} {[%emt 00:00:06]} Bd4 {[%clk 00:09:09]} {[%emt 00:00:32]}
33. Re1 {[%clk 00:00:56]} {[%emt 00:00:03]} Bxe5 {[%clk 00:08:41]} {[%emt
00:00:39]} 34. Bc1 {[%clk 00:00:59]} {[%emt 00:00:07]} Kf8 {[%clk 00:08:29]}
{[%emt 00:00:21]} 35. f4 {[%clk 00:01:05]} {[%emt 00:00:04]} Bd4 {[%clk
00:08:38]} {[%emt 00:00:01]} 36. Kf3 {[%clk 00:01:13]} {[%emt 00:00:03]} Rc3+
{[%clk 00:08:42]} {[%emt 00:00:05]} 37. Kg4 {[%clk 00:00:59]} {[%emt 00:00:23]}
g6 {[%clk 00:08:24]} {[%emt 00:00:29]} 38. e5 {[%clk 00:00:30]} {[%emt
00:00:38]} h5+ {[%clk 00:08:05]} {[%emt 00:00:29]} 39. Kg5 {[%clk 00:00:38]}
{[%emt 00:00:03]} Kg7 {[%clk 00:07:56]} {[%emt 00:00:19]} 40. Re4 {[%clk
00:00:46]} {[%emt 00:00:02]} f6+ {[%clk 00:07:59]} {[%emt 00:00:07]} 0-1

[Event "British Rapidplay Championship 2023"]
[Site "Mercure Bradford, Bankfield Hotel"]
[Date "2023.04.15"]
[Round "6.3"]
[White "Cook, Phil"]
[Black "Pitcher, John"]
[Result "1-0"]
[TimeControl "15 minutes plus 10 seconds per move"]
[WhiteElo "2126"]
[BlackElo "2358"]

1. c4 {[%clk 00:15:17]} {[%emt 00:00:02]} c6 {[%clk 00:15:15]} {[%emt
00:00:05]} 2. Nf3 {[%clk 00:15:24]} {[%emt 00:00:03]} d5 {[%clk 00:15:22]}
{[%emt 00:00:02]} 3. b3 {[%clk 00:15:31]} {[%emt 00:00:04]} Nf6 {[%clk
00:15:28]} {[%emt 00:00:04]} 4. Bb2 {[%clk 00:15:28]} {[%emt 00:00:13]} Bf5
{[%clk 00:15:25]} {[%emt 00:00:13]} 5. g3 {[%clk 00:15:32]} {[%emt 00:00:05]}
e6 {[%clk 00:15:32]} {[%emt 00:00:03]} 6. Bg2 {[%clk 00:15:40]} {[%emt
00:00:03]} Be7 {[%clk 00:15:32]} {[%emt 00:00:09]} 7. O-O {[%clk 00:15:45]}
{[%emt 00:00:06]} h6 {[%clk 00:15:39]} {[%emt 00:00:03]} 8. d3 {[%clk
00:15:16]} {[%emt 00:00:39]} O-O {[%clk 00:15:45]} {[%emt 00:00:03]} 9. Nbd2
{[%clk 00:15:16]} {[%emt 00:00:10]} a5 {[%clk 00:15:52]} {[%emt 00:00:03]} 10.
a3 {[%clk 00:15:08]} {[%emt 00:00:19]} Na6 {[%clk 00:15:48]} {[%emt 00:00:14]}
11. Rc1 {[%clk 00:14:41]} {[%emt 00:00:37]} Bh7 {[%clk 00:14:52]} {[%emt
00:01:06]} 12. Rc2 {[%clk 00:12:25]} {[%emt 00:02:27]} Qb6 {[%clk 00:14:23]}
{[%emt 00:00:38]} 13. cxd5 {[%clk 00:11:59]} {[%emt 00:00:36]} exd5 {[%clk
00:14:18]} {[%emt 00:00:14]} 14. Qa1 {[%clk 00:10:40]} {[%emt 00:01:30]} Rfd8
{[%clk 00:13:13]} {[%emt 00:01:14]} 15. Bd4 {[%clk 00:10:03]} {[%emt 00:00:48]}
Qc7 {[%clk 00:13:13]} {[%emt 00:00:10]} 16. Be5 {[%clk 00:09:55]} {[%emt
00:00:17]} Qc8 {[%clk 00:13:05]} {[%emt 00:00:18]} 17. Re1 {[%clk 00:09:36]}
{[%emt 00:00:31]} Ne8 {[%clk 00:12:11]} {[%emt 00:01:03]} 18. Bd4 {[%clk
00:08:13]} {[%emt 00:01:33]} Bf6 {[%clk 00:10:57]} {[%emt 00:01:24]} 19. h3
{[%clk 00:06:52]} {[%emt 00:01:31]} Bxd4 {[%clk 00:10:30]} {[%emt 00:00:37]} 20.
Qxd4 {[%clk 00:06:53]} {[%emt 00:00:09]} Nac7 {[%clk 00:10:15]} {[%emt
00:00:24]} 21. Ne5 {[%clk 00:06:27]} {[%emt 00:00:38]} Nb5 {[%clk 00:09:07]}
{[%emt 00:01:18]} 22. Qb2 {[%clk 00:06:21]} {[%emt 00:00:15]} Qe6 {[%clk
00:09:13]} {[%emt 00:00:03]} 23. e4 {[%clk 00:04:21]} {[%emt 00:02:11]} dxe4
{[%clk 00:07:41]} {[%emt 00:01:42]} 24. Nxe4 {[%clk 00:04:24]} {[%emt
00:00:07]} Bxe4 {[%clk 00:05:32]} {[%emt 00:02:19]} 25. Rxe4 {[%clk 00:04:30]}
{[%emt 00:00:04]} Nf6 {[%clk 00:05:22]} {[%emt 00:00:20]} 26. Nxc6 {[%clk
00:03:41]} {[%emt 00:01:00]} Nxe4 {[%clk 00:04:50]} {[%emt 00:00:41]} 27. Nxd8
{[%clk 00:03:49]} {[%emt 00:00:02]} Rxd8 {[%clk 00:04:53]} {[%emt 00:00:06]} 28.
Bxe4 {[%clk 00:03:32]} {[%emt 00:00:28]} f5 {[%clk 00:03:23]} {[%emt 00:01:40]}
29. Bxb7 {[%clk 00:02:51]} {[%emt 00:00:52]} Nd4 {[%clk 00:03:22]} {[%emt
00:00:10]} 30. Rc5 {[%clk 00:02:27]} {[%emt 00:00:34]} Qe1+ {[%clk 00:03:10]}
{[%emt 00:00:21]} 31. Kg2 {[%clk 00:02:18]} {[%emt 00:00:19]} f4 {[%clk
00:01:07]} {[%emt 00:02:13]} 32. Rd5 {[%clk 00:01:24]} {[%emt 00:01:05]} f3+
{[%clk 00:01:08]} {[%emt 00:00:09]} 33. Kh2 {[%clk 00:01:31]} {[%emt 00:00:03]}
Ne2 {[%clk 00:00:18]} {[%emt 00:01:01]} 34. Rxd8+ {[%clk 00:01:34]} {[%emt
00:00:07]} Kf7 {[%clk 00:00:27]} 35. Bd5+ {[%clk 00:01:18]} {[%emt 00:00:27]}
Ke7 {[%clk 00:00:11]} {[%emt 00:00:26]} 36. Qxg7+ {[%clk 00:01:17]} {[%emt
00:00:11]} Kxd8 {[%clk 00:00:19]} {[%emt 00:00:01]} 37. Qf6+ {[%clk 00:01:02]}
{[%emt 00:00:26]} Kc7 {[%clk 00:00:22]} {[%emt 00:00:07]} 38. Qe7+ {[%clk
00:01:09]} {[%emt 00:00:03]} Kb6 {[%clk 00:00:24]} {[%emt 00:00:07]} 39. Qd6+
{[%clk 00:01:15]} {[%emt 00:00:04]} Ka7 {[%clk 00:00:32]} {[%emt 00:00:01]} 40.
Qc7+ {[%clk 00:01:23]} {[%emt 00:00:03]} 1-0

[Event "British Rapidplay Championship 2023"]
[Site "Mercure Bradford, Bankfield Hotel"]
[Date "2023.04.15"]
[Round "6.4"]
[White "Edwards-Wright, Miles D"]
[Black "Eckersley-Waites, Tom"]
[Result "1/2-1/2"]
[TimeControl "15 minutes plus 10 seconds per move"]
[WhiteElo "1937"]
[BlackElo "2304"]

1. g3 {[%clk 00:15:18]} {[%emt 00:00:01]} d5 {[%clk 00:15:17]} {[%emt
00:00:03]} 2. Bg2 {[%clk 00:15:25]} {[%emt 00:00:03]} Nf6 {[%clk 00:15:25]}
{[%emt 00:00:01]} 3. d3 {[%clk 00:15:31]} {[%emt 00:00:05]} c5 {[%clk
00:15:22]} {[%emt 00:00:13]} 4. b3 {[%clk 00:15:36]} {[%emt 00:00:06]} Nc6
{[%clk 00:15:29]} {[%emt 00:00:03]} 5. Bb2 {[%clk 00:15:43]} {[%emt 00:00:03]}
e5 {[%clk 00:15:36]} {[%emt 00:00:02]} 6. e3 {[%clk 00:15:43]} {[%emt
00:00:11]} Be6 {[%clk 00:14:20]} {[%emt 00:01:25]} 7. Nd2 {[%clk 00:15:46]}
{[%emt 00:00:07]} a5 {[%clk 00:14:16]} {[%emt 00:00:13]} 8. a4 {[%clk
00:14:30]} {[%emt 00:01:28]} Qc7 {[%clk 00:13:58]} {[%emt 00:00:27]} 9. Ne2
{[%clk 00:14:32]} {[%emt 00:00:08]} c4 {[%clk 00:12:10]} {[%emt 00:01:58]} 10.
bxc4 {[%clk 00:13:23]} {[%emt 00:01:19]} dxc4 {[%clk 00:12:13]} {[%emt
00:00:07]} 11. d4 {[%clk 00:13:14]} {[%emt 00:00:19]} Bb4 {[%clk 00:10:47]}
{[%emt 00:01:36]} 12. c3 {[%clk 00:12:50]} {[%emt 00:00:34]} Bd6 {[%clk
00:10:55]} {[%emt 00:00:02]} 13. Ne4 {[%clk 00:12:16]} {[%emt 00:00:44]} Nxe4
{[%clk 00:08:16]} {[%emt 00:02:49]} 14. Bxe4 {[%clk 00:12:24]} {[%emt
00:00:02]} Bh3 {[%clk 00:07:07]} {[%emt 00:01:20]} 15. Ng1 {[%clk 00:11:19]}
{[%emt 00:01:15]} Bd7 {[%clk 00:07:10]} {[%emt 00:00:06]} 16. Bg2 {[%clk
00:10:21]} {[%emt 00:01:09]} exd4 {[%clk 00:06:50]} {[%emt 00:00:30]} 17. exd4
{[%clk 00:10:19]} {[%emt 00:00:11]} O-O {[%clk 00:06:57]} {[%emt 00:00:04]} 18.
Ne2 {[%clk 00:09:45]} {[%emt 00:00:43]} Rfe8 {[%clk 00:06:46]} {[%emt
00:00:21]} 19. O-O {[%clk 00:09:44]} {[%emt 00:00:12]} Bf5 {[%clk 00:06:04]}
{[%emt 00:00:52]} 20. Re1 {[%clk 00:09:32]} {[%emt 00:00:22]} h5 {[%clk
00:05:38]} {[%emt 00:00:35]} 21. Bc1 {[%clk 00:08:30]} {[%emt 00:01:12]} h4
{[%clk 00:03:57]} {[%emt 00:01:52]} 22. Nf4 {[%clk 00:08:17]} {[%emt 00:00:22]}
Rxe1+ {[%clk 00:03:52]} {[%emt 00:00:15]} 23. Qxe1 {[%clk 00:08:26]} {[%emt
00:00:02]} Qd7 {[%clk 00:03:56]} {[%emt 00:00:05]} 24. Ra2 {[%clk 00:08:05]}
{[%emt 00:00:32]} Ne7 {[%clk 00:02:19]} {[%emt 00:01:46]} 25. Nd5 {[%clk
00:05:49]} {[%emt 00:02:27]} h3 {[%clk 00:02:08]} {[%emt 00:00:21]} 26. Nxe7+
{[%clk 00:05:43]} {[%emt 00:00:16]} Bxe7 {[%clk 00:02:09]} {[%emt 00:00:09]} 27.
Bh1 {[%clk 00:05:41]} {[%emt 00:00:12]} Bd3 {[%clk 00:02:05]} {[%emt 00:00:14]}
28. Be3 {[%clk 00:04:43]} {[%emt 00:01:09]} Ra6 {[%clk 00:01:48]} {[%emt
00:00:27]} 29. Rb2 {[%clk 00:03:54]} {[%emt 00:00:59]} Qxa4 {[%clk 00:01:18]}
{[%emt 00:00:40]} 30. Rxb7 {[%clk 00:03:57]} {[%emt 00:00:06]} Bf8 {[%clk
00:01:15]} {[%emt 00:00:13]} 31. Bd5 {[%clk 00:03:50]} {[%emt 00:00:18]} Re6
{[%clk 00:01:07]} {[%emt 00:00:17]} 32. Bxe6 {[%clk 00:03:34]} {[%emt
00:00:27]} fxe6 {[%clk 00:01:16]} {[%emt 00:00:01]} 33. d5 {[%clk 00:03:44]}
{[%emt 00:00:01]} exd5 {[%clk 00:01:20]} {[%emt 00:00:05]} 34. Bd4 {[%clk
00:03:32]} {[%emt 00:00:21]} Be4 {[%clk 00:00:30]} {[%emt 00:01:00]} 35. f3
{[%clk 00:03:42]} Qc2 {[%clk 00:00:39]} {[%emt 00:00:01]} 36. Bf2 {[%clk
00:03:32]} {[%emt 00:00:20]} Bc5 {[%clk 00:00:26]} {[%emt 00:00:23]} 37. fxe4
{[%clk 00:03:24]} {[%emt 00:00:19]} Bxf2+ {[%clk 00:00:23]} {[%emt 00:00:12]}
38. Qxf2 {[%clk 00:03:31]} {[%emt 00:00:02]} Qc1+ {[%clk 00:00:32]} 39. Qf1
{[%clk 00:02:44]} {[%emt 00:00:58]} Qe3+ {[%clk 00:00:40]} {[%emt 00:00:01]} 40.
Qf2 {[%clk 00:02:49]} {[%emt 00:00:06]} 1/2-1/2